fUST/lending_fUST_20240825
["ID","MTS","AMOUNT","RATE_DAILY","PERIOD"]
[335830818,1724521846775,-500.0,0.00013698,2]
[335830819,1724521846784,-1036.55,0.00013698,2]
[335830820,1724521846794,-500.0,0.00013698,2]
[335830821,1724521846803,-902.82,0.00013698,2]
[335830822,1724521846812,-500.0,0.00013698,2]
[335830823,1724521846830,-206.47234373,0.00013698,2]
[335830824,1724521846840,-500.0,0.00013698,2]
[335830825,1724521846852,-500.0,0.00013698,2]
[335830826,1724521846862,-540.30964038,0.00013698,2]
[335830827,1724521846872,-855.97,0.00013698,2]
[335830828,1724521846882,-500.0,0.00013698,2]
[335830829,1724521846891,-804.05,0.00013698,2]
[335830830,1724521846900,-583.86,0.00013698,2]
[335830831,1724521846910,-1162.05,0.00013698,2]
[335830832,1724521846919,-500.0,0.00013698,2]
[335830833,1724521846928,-500.0,0.00013698,2]
[335830834,1724521846938,-641.08,0.00013698,2]
[335830835,1724521846947,-2678.0,0.00013698,2]
[335830836,1724521846956,-500.0,0.00013698,2]
[335830837,1724521846965,-696.61,0.00013698,2]
[335830838,1724521846974,-500.0,0.00013698,2]
[335830839,1724521846983,-500.0,0.00013698,2]
[335830840,1724521846993,-657.46,0.00013698,2]
[335830841,1724521847003,-1033.97,0.00013698,2]
[335830842,1724521847014,-836.74,0.00013698,2]
[335830843,1724521847023,-500.0,0.00013698,2]
[335830844,1724521847034,-500.0,0.00013698,2]
[335830845,1724521847044,-712.87,0.00013698,2]
[335830846,1724521847054,-573.95,0.00013698,2]
[335830847,1724521847066,-500.0,0.00013698,2]
[335830848,1724521847077,-612.78,0.00013698,2]
[335830849,1724521847089,-500.0,0.00013698,2]
[335830850,1724521847099,-500.0,0.00013698,2]
[335830851,1724521847110,-500.0,0.00013698,2]
[335830852,1724521847121,-500.0,0.00013698,2]
[335830853,1724521847131,-500.0,0.00013698,2]
[335830854,1724521847141,-741.45,0.00013698,2]
[335830855,1724521847151,-1025.22,0.00013698,2]
[335830856,1724521847160,-500.0,0.00013698,2]
[335830857,1724521847170,-507.08419993,0.00013698,2]
[335830858,1724521847180,-623.82,0.00013698,2]
[335830859,1724521847188,-500.0,0.00013698,2]
[335830860,1724521847199,-516.28345605,0.00013698,2]
[335830861,1724521847209,-1402.19,0.00013698,2]
[335830862,1724521847220,-500.0,0.00013698,2]
[335830863,1724521847231,-518.27408253,0.00013698,2]
[335830864,1724521847241,-500.0,0.00013698,2]
[335830865,1724521847252,-1441.6,0.00013698,2]
[335830866,1724521847261,-500.0,0.00013698,2]
[335830867,1724521847270,-561.71,0.00013698,2]
[335830868,1724521847279,-500.0,0.00013698,2]
[335830869,1724521847288,-739.16,0.00013698,2]
[335830870,1724521847297,-500.0,0.00013698,2]
[335830871,1724521847306,-1587.76,0.00013698,2]
[335830872,1724521847321,-519.21642088,0.00013698,2]
[335830873,1724521847331,-500.0,0.00013698,2]
[335830874,1724521847340,-500.0,0.00013698,2]
[335830875,1724521847349,-500.0,0.00013698,2]
[335830876,1724521847357,-500.0,0.00013698,2]
[335830877,1724521847366,-969.01,0.00013698,2]
[335830878,1724521847375,-2511.45,0.00013698,2]
[335830879,1724521847384,-500.0,0.00013698,2]
[335830880,1724521847394,-577.1,0.00013698,2]
[335830881,1724521847404,-711.86,0.00013698,2]
[335830882,1724521847413,-530.58660971,0.00013698,2]
[335830883,1724521847423,-667.04,0.00013698,2]
[335830884,1724521847432,-500.0,0.00013698,2]
[335830885,1724521847441,-688.96,0.00013698,2]
[335830886,1724521847450,-500.0,0.00013698,2]
[335830887,1724521847460,-3000.1,0.00013698,2]
[335830888,1724521847469,-500.0,0.00013698,2]
[335830889,1724521847478,-1091.24,0.00013698,2]
[335830890,1724521847488,-500.0,0.00013698,2]
[335830891,1724521847497,-500.0,0.00013698,2]
[335830892,1724521847506,-500.0,0.00013698,2]
[335830893,1724521847516,-500.0,0.00013698,2]
[335830894,1724521847528,-500.0,0.00013698,2]
[335830895,1724521847538,-782.21,0.00013698,2]
[335830896,1724521847548,-500.0,0.00013698,2]
[335830897,1724521847557,-500.0,0.00013698,2]
[335830898,1724521847569,-506.07764498,0.00013698,2]
[335830899,1724521847578,-1237.81,0.00013698,2]
[335830900,1724521847588,-500.0,0.00013698,2]
[335830901,1724521847597,-500.0,0.00013698,2]
[335830902,1724521847607,-1174.99,0.00013698,2]
[335830903,1724521847617,-500.0,0.00013698,2]
[335830904,1724521847627,-500.0,0.00013698,2]
[335830905,1724521847637,-802.83,0.00013698,2]
[335830906,1724521847647,-1308.0,0.00013698,2]
[335830907,1724521847659,-500.0,0.00013698,2]
[335830908,1724521847669,-909.86,0.00013698,2]
[335830909,1724521847679,-500.0,0.00013698,2]
[335830910,1724521847689,-500.0,0.00013698,2]
[335830911,1724521847699,-500.0,0.00013698,2]
[335830912,1724521847710,-2041.74,0.00013698,2]
[335830913,1724521847720,-500.0,0.00013698,2]
[335830914,1724521847730,-500.0,0.00013698,2]
[335830915,1724521847740,-500.0,0.00013698,2]
[335830916,1724521847750,-500.0,0.00013698,2]
[335830917,1724521847761,-500.0,0.00013698,2]
[335830918,1724521847771,-1548.14,0.00013698,2]
[335830919,1724521847780,-928.18,0.00013698,2]
[335830920,1724521847790,-500.0,0.00013698,2]
[335830921,1724521847799,-500.0,0.00013698,2]
[335830922,1724521847809,-500.0,0.00013698,2]
[335830923,1724521847829,-500.0,0.00013698,2]
[335830924,1724521847839,-1277.34,0.00013698,2]
[335830925,1724521847851,-2181.31,0.00013698,2]
[335830926,1724521847861,-500.47084625,0.00013698,2]
[335830927,1724521847870,-1534.91,0.00013698,2]
[335830928,1724521847880,-624.78333316,0.00013698,2]
[335830929,1724521847890,-500.0,0.00013698,2]
[335830930,1724521847900,-500.0,0.00013698,2]
[335830931,1724521847911,-500.0,0.00013698,2]
[335830932,1724521847923,-500.0,0.00013698,2]
[335830933,1724521847934,-500.0,0.00013698,2]
[335830934,1724521847944,-500.0,0.00013698,2]
[335830935,1724521847955,-500.0,0.00013698,2]
[335830936,1724521847965,-901.74,0.00013698,2]
[335830937,1724521847974,-500.0,0.00013698,2]
[335830938,1724521847983,-527.49750531,0.00013698,2]
[335830939,1724521847994,-500.0,0.00013698,2]
[335830940,1724521848006,-500.0,0.00013698,2]
[335830941,1724521848017,-562.37497153,0.00013698,2]
[335830942,1724521848026,-1467.48,0.00013698,2]
[335830943,1724521848036,-1482.04,0.00013698,2]
[335830944,1724521848046,-762.7,0.00013698,2]
[335830945,1724521848056,-500.0,0.00013698,2]
[335830946,1724521848065,-712.32,0.00013698,2]
[335830947,1724521848076,-500.0,0.00013698,2]
[335830948,1724521848087,-500.0,0.00013698,2]
[335830949,1724521848098,-500.0,0.00013698,2]
[335830950,1724521848108,-500.0,0.00013698,2]
[335830951,1724521848119,-500.0,0.00013698,2]
[335830952,1724521848129,-501.58266784,0.00013698,2]
[335830953,1724521848139,-500.0,0.00013698,2]
[335830954,1724521848149,-802.75,0.00013698,2]
[335830955,1724521848158,-500.0,0.00013698,2]
[335830956,1724521848168,-500.0,0.00013698,2]
[335830957,1724521848177,-500.0,0.00013698,2]
[335830958,1724521848186,-500.0,0.00013698,2]
[335830959,1724521848196,-500.0,0.00013698,2]
[335830960,1724521848205,-760.72,0.00013698,2]
[335830961,1724521848214,-505.59234146,0.00013698,2]
[335830962,1724521848222,-500.0,0.00013698,2]
[335830963,1724521848231,-500.0,0.00013698,2]
[335830964,1724521848240,-1883.93,0.00013698,2]
[335830965,1724521848249,-500.0,0.00013698,2]
[335830966,1724521848259,-500.0,0.00013698,2]
[335830967,1724521848268,-500.0,0.00013698,2]
[335830968,1724521848278,-500.0,0.00013698,2]
[335830969,1724521848287,-500.0,0.00013698,2]
[335830970,1724521848297,-500.0,0.00013698,2]
[335830971,1724521848307,-500.0,0.00013698,2]
[335830972,1724521848320,-500.0,0.00013698,2]
[335830973,1724521848330,-500.0,0.00013698,2]
[335830974,1724521848340,-1236.47,0.00013698,2]
[335830975,1724521848349,-427.47475264,0.00013698,2]
[335830976,1724521848358,-500.0,0.00013698,2]
[335830977,1724521848368,-500.0,0.00013698,2]
[335830978,1724521848378,-500.0,0.00013698,2]
[335830979,1724521848387,-500.0,0.00013698,2]
[335830980,1724521848397,-838.02,0.00013698,2]
[335830981,1724521848406,-792.15,0.00013698,2]
[335830982,1724521848415,-700.89,0.00013698,2]
[335830983,1724521848425,-500.0,0.00013698,2]
[335830984,1724521848434,-915.03,0.00013698,2]
[335830985,1724521848444,-500.0,0.00013698,2]
[335830986,1724521848453,-500.0,0.00013698,2]
[335830987,1724521848462,-500.0,0.00013698,2]
[335830988,1724521848471,-578.28416374,0.00013698,2]
[335830989,1724521848481,-500.0,0.00013698,2]
[335830990,1724521848490,-507.27689006,0.00013698,2]
[335830991,1724521848499,-821.4,0.00013698,2]
[335830992,1724521848509,-799.63,0.00013698,2]
[335830993,1724521848518,-500.0,0.00013698,2]
[335830994,1724521848527,-500.58808366,0.00013698,2]
[335830995,1724521848537,-775.2,0.00013698,2]
[335830996,1724521848546,-603.08,0.00013698,2]
[335830997,1724521848555,-500.0,0.00013698,2]
[335830998,1724521848565,-500.0,0.00013698,2]
[335830999,1724521848574,-500.0,0.00013698,2]
[335831000,1724521848584,-507.90296033,0.00013698,2]
[335831001,1724521848593,-500.0,0.00013698,2]
[335831002,1724521848603,-2168.374642,0.00013698,2]
[335831003,1724521848613,-500.0,0.00013698,2]
[335831004,1724521848622,-2168.374642,0.00013698,2]
[335831005,1724521848631,-2168.374642,0.00013698,2]
[335831006,1724521848808,-500.0,0.00013698,2]
[335831007,1724521848820,-2168.374642,0.00013698,2]
[335831008,1724521848830,-2168.374642,0.00013698,2]
[335831009,1724521848840,-2168.374642,0.00013698,2]
[335831010,1724521848852,-1072.4,0.00013698,2]
[335831011,1724521848862,-500.0,0.00013698,2]
[335831012,1724521848871,-1094.36,0.00013698,2]
[335831013,1724521848881,-500.0,0.00013698,2]
[335831014,1724521848891,-2168.374642,0.00013698,2]
[335831015,1724521848900,-2168.374642,0.00013698,2]
[335831016,1724521848910,-500.0,0.00013698,2]
[335831017,1724521848921,-2168.374642,0.00013698,2]
[335831018,1724521848931,-2168.374642,0.00013698,2]
[335831019,1724521848940,-627.12,0.00013698,2]
[335831020,1724521848950,-2168.374642,0.00013698,2]
[335831021,1724521848959,-2168.374642,0.00013698,2]
[335831022,1724521848968,-1086.73,0.00013698,2]
[335831023,1724521848978,-500.0,0.00013698,2]
[335831024,1724521848987,-515.1272377,0.00013698,2]
[335831025,1724521848996,-276.62121277,0.00013698,2]
[335831026,1724521849006,-500.0,0.00013698,2]
[335831027,1724521849015,-500.0,0.00013698,2]
[335831028,1724521849024,-500.0,0.00013698,2]
[335831029,1724521849034,-1295.01,0.00013698,2]
[335831030,1724521849043,-500.0,0.00013698,2]
[335831031,1724521849053,-500.0,0.00013698,2]
[335831032,1724521849063,-500.0,0.00013698,2]
[335831033,1724521849072,-647.57,0.00013698,2]
[335831034,1724521849082,-500.0,0.00013698,2]
[335831035,1724521849091,-614.73,0.00013698,2]
[335831036,1724521849100,-500.0,0.00013698,2]
[335831037,1724521849110,-500.0,0.00013698,2]
[335831038,1724521849119,-500.0,0.00013698,2]
[335831039,1724521849129,-500.0,0.00013698,2]
[335831040,1724521849139,-500.0,0.00013698,2]
[335831041,1724521849148,-500.0,0.00013698,2]
[335831042,1724521849158,-865.41,0.00013698,2]
[335831043,1724521849167,-1029.16,0.00013698,2]
[335831044,1724521849176,-500.0,0.00013698,2]
[335831045,1724521849186,-708.45,0.00013698,2]
[335831046,1724521849195,-500.0,0.00013698,2]
[335831047,1724521849205,-1547.85,0.00013698,2]
[335831048,1724521849215,-1400.25,0.00013698,2]
[335831049,1724521849225,-500.0,0.00013698,2]
[335831050,1724521849236,-500.0,0.00013698,2]
[335831051,1724521849246,-1854.33,0.00013698,2]
[335831052,1724521849255,-507.57494611,0.00013698,2]
[335831053,1724521849264,-500.0,0.00013698,2]
[335831054,1724521849274,-500.0,0.00013698,2]
[335831055,1724521849283,-500.0,0.00013698,2]
[335831056,1724521849293,-1342.71,0.00013698,2]
[335831057,1724521849303,-594.41,0.00013698,2]
[335831058,1724521849313,-500.0,0.00013698,2]
[335831059,1724521849323,-1000.0,0.00013698,2]
[335831060,1724521849333,-1205.38,0.00013698,2]
[335831061,1724521849343,-839.95,0.00013698,2]
[335831062,1724521849352,-539.554904,0.00013698,2]
[335831063,1724521849362,-500.0,0.00013698,2]
[335831064,1724521849373,-689.41,0.00013698,2]
[335831065,1724521849382,-1801.58,0.00013698,2]
[335831066,1724521849392,-933.28,0.00013698,2]
[335831067,1724521849401,-500.82358097,0.00013698,2]
[335831068,1724521849411,-500.0,0.00013698,2]
[335831069,1724521849420,-500.0,0.00013698,2]
[335831070,1724521849430,-500.0,0.00013698,2]
[335831071,1724521849439,-2176.57,0.00013698,2]
[335831072,1724521849449,-500.0,0.00013698,2]
[335831073,1724521849458,-500.0,0.00013698,2]
[335831074,1724521849467,-500.0,0.00013698,2]
[335831075,1724521849477,-500.0,0.00013698,2]
[335831076,1724521849488,-500.0,0.00013698,2]
[335831077,1724521849497,-500.0,0.00013698,2]
[335831078,1724521849508,-500.0,0.00013698,2]
[335831079,1724521849517,-500.0,0.00013698,2]
[335831080,1724521849528,-500.0,0.00013698,2]
[335831081,1724521849538,-161.52212397,0.00013698,2]
[335831082,1724521849547,-500.0,0.00013698,2]
[335831083,1724521849558,-500.0,0.00013698,2]
[335831084,1724521849570,-500.0,0.00013698,2]
[335831085,1724521849579,-500.0,0.00013698,2]
[335831086,1724521849588,-500.0,0.00013698,2]
[335831087,1724521849597,-500.0,0.00013698,2]
[335831088,1724521849608,-500.0,0.00013698,2]
[335831089,1724521849618,-500.0,0.00013698,2]
[335831090,1724521849628,-500.0,0.00013698,2]
[335831091,1724521849638,-500.0,0.00013698,2]
[335831092,1724521849650,-500.0,0.00013698,2]
[335831093,1724521849659,-500.0,0.00013698,2]
[335831094,1724521849669,-500.0,0.00013698,2]
[335831095,1724521849679,-500.0,0.00013698,2]
[335831096,1724521849689,-500.0,0.00013698,2]
[335831097,1724521849698,-221.32805671,0.00013698,2]
[335831098,1724521849710,-500.0,0.00013698,2]
[335831099,1724521849720,-500.0,0.00013698,2]
[335831100,1724521849730,-500.0,0.00013698,2]
[335831101,1724521849738,-500.0,0.00013698,2]
[335831102,1724521849748,-500.0,0.00013698,2]
[335831103,1724521849759,-362.26165918,0.00013698,2]
[335831104,1724521849769,-500.0,0.00013698,2]
[335831105,1724521849780,-500.0,0.00013698,2]
[335831106,1724521849790,-1819.28,0.00013698,2]
[335831107,1724521849800,-500.0,0.00013698,2]
[335831108,1724521849811,-1819.28,0.00013698,2]
[335831109,1724521849823,-1819.28,0.00013698,2]
[335831110,1724521849832,-500.0,0.00013698,2]
[335831111,1724521849843,-1819.28,0.00013698,2]
[335831112,1724521849853,-500.28146077,0.00013698,2]
[335831113,1724521849863,-1819.28,0.00013698,2]
[335831114,1724521849874,-500.0,0.00013698,2]
[335831115,1724521849883,-1819.28,0.00013698,2]
[335831116,1724521849894,-1819.28,0.00013698,2]
[335831117,1724521849904,-500.0,0.00013698,2]
[335831118,1724521849915,-1819.28,0.00013698,2]
[335831119,1724521849926,-614.37070499,0.00013698,2]
[335831120,1724521849936,-1819.28,0.00013698,2]
[335831121,1724521849945,-1819.28,0.00013698,2]
[335831122,1724521849955,-1819.28,0.00013698,2]
[335831123,1724521849965,-1819.28,0.00013698,2]
[335831124,1724521849976,-1819.28,0.00013698,2]
[335831125,1724521849986,-500.0,0.00013698,2]
[335831126,1724521849995,-1819.28,0.00013698,2]
[335831127,1724521850004,-1819.28,0.00013698,2]
[335831128,1724521850014,-500.0,0.00013698,2]
[335831129,1724521850024,-688.91,0.00013698,2]
[335831130,1724521850034,-1819.28,0.00013698,2]
[335831131,1724521850044,-1819.28,0.00013698,2]
[335831132,1724521850053,-500.7795967,0.00013698,2]
[335831133,1724521850062,-1819.28,0.00013698,2]
[335831134,1724521850076,-13181.89,0.00013698,2]
[335831135,1724521850087,-1819.28,0.00013698,2]
[335831136,1724521850097,-1819.28,0.00013698,2]
[335831137,1724521850107,-1819.28,0.00013698,2]
[335831138,1724521850116,-1819.28,0.00013698,2]
[335831139,1724521850127,-150.0,0.00013698,2]
[335831140,1724521850137,-1819.28,0.00013698,2]
[335831141,1724521850146,-1819.46803653,0.00013698,2]
[335831142,1724521850155,-500.42181622,0.00013698,2]
[335831143,1724521850166,-563.32,0.00013698,2]
[335831144,1724521850175,-500.0,0.00013698,2]
[335831145,1724521850185,-500.0,0.00013698,2]
[335831146,1724521850195,-500.0,0.00013698,2]
[335831147,1724521850204,-779.77,0.00013698,2]
[335831148,1724521850213,-838.1,0.00013698,2]
[335831149,1724521850223,-3485.02,0.00013698,2]
[335831150,1724521850232,-500.0,0.00013698,2]
[335831151,1724521850242,-1006.78,0.00013698,2]
[335831152,1724521850251,-648.63,0.00013698,2]
[335831153,1724521850261,-7222.51,0.00013698,2]
[335831154,1724521850271,-500.0,0.00013698,2]
[335831155,1724521850281,-500.0,0.00013698,2]
[335831156,1724521850291,-500.0,0.00013698,2]
[335831157,1724521850301,-500.10404157,0.00013698,2]
[335831158,1724521850310,-500.0,0.00013698,2]
[335831159,1724521850320,-500.0,0.00013698,2]
[335831160,1724521850329,-500.0,0.00013698,2]
[335831161,1724521850339,-500.0,0.00013698,2]
[335831162,1724521850348,-500.0,0.00013698,2]
[335831163,1724521850358,-2391.12,0.00013698,2]
[335831164,1724521850367,-942.83,0.00013698,2]
[335831165,1724521850377,-1024.17,0.00013698,2]
[335831166,1724521850386,-1219.21,0.00013698,2]
[335831167,1724521850396,-500.0,0.00013698,2]
[335831168,1724521850406,-2028.21,0.00013698,2]
[335831169,1724521850415,-500.0,0.00013698,2]
[335831170,1724521850425,-500.0,0.00013698,2]
[335831171,1724521850434,-500.0,0.00013698,2]
[335831172,1724521850444,-599.09,0.00013698,2]
[335831173,1724521850454,-500.0,0.00013698,2]
[335831174,1724521850464,-866.28,0.00013698,2]
[335831175,1724521850474,-500.0,0.00013698,2]
[335831176,1724521850484,-7815.43,0.00013698,2]
[335831177,1724521850493,-853.33,0.00013698,2]
[335831178,1724521850503,-1005.48,0.00013698,2]
[335831179,1724521850512,-500.0,0.00013698,2]
[335831180,1724521850521,-804.39,0.00013698,2]
[335831181,1724521850531,-500.0,0.00013698,2]
[335831182,1724521850540,-500.0,0.00013698,2]
[335831183,1724521850550,-3795.69,0.00013698,2]
[335831184,1724521850560,-558.93,0.00013698,2]
[335831185,1724521850571,-500.0,0.00013698,2]
[335831186,1724521850580,-513.48156499,0.00013698,2]
[335831187,1724521850589,-3214.05,0.00013698,2]
[335831188,1724521850598,-500.0,0.00013698,2]
[335831189,1724521850609,-1389.04,0.00013698,2]
[335831190,1724521850618,-500.0,0.00013698,2]
[335831191,1724521850628,-503.7431925,0.00013698,2]
[335831192,1724521850637,-500.0,0.00013698,2]
[335831193,1724521850646,-500.0,0.00013698,2]
[335831194,1724521850656,-696.88,0.00013698,2]
[335831195,1724521850665,-500.0,0.00013698,2]
[335831196,1724521850675,-163.17092955,0.00013698,2]
[335831197,1724521850685,-697.11,0.00013698,2]
[335831198,1724521850694,-500.0,0.00013698,2]
[335831199,1724521850703,-500.0,0.00013698,2]
[335831200,1724521850713,-353.54851408,0.00013698,2]
[335831201,1724521850723,-500.0,0.00013698,2]
[335831202,1724521850733,-688.52,0.00013698,2]
[335831203,1724521850742,-766.26,0.00013698,2]
[335831204,1724521850751,-500.0,0.00013698,2]
[335831205,1724521850761,-12175.53,0.00013698,2]
[335831206,1724521850770,-500.0,0.00013698,2]
[335831207,1724521850779,-500.95745786,0.00013698,2]
[335831208,1724521850789,-2845.31,0.00013698,2]
[335831209,1724521850798,-1021.0,0.00013698,2]
[335831210,1724521850808,-500.0,0.00013698,2]
[335831211,1724521850819,-500.0,0.00013698,2]
[335831212,1724521850828,-983.77,0.00013698,2]
[335831213,1724521850837,-951.5,0.00013698,2]
[335831214,1724521850848,-8853.56,0.00013698,2]
[335831215,1724521850859,-508.43269535,0.00013698,2]
[335831216,1724521850868,-750.87,0.00013698,2]
[335831217,1724521850878,-500.0,0.00013698,2]
[335831218,1724521850887,-724.85,0.00013698,2]
[335831219,1724521850898,-5847.12,0.00013698,2]
[335831220,1724521850907,-500.0,0.00013698,2]
[335831221,1724521850916,-598.26,0.00013698,2]
[335831222,1724521850928,-929.37,0.00013698,2]
[335831223,1724521850940,-500.0,0.00013698,2]
[335831224,1724521850950,-500.0,0.00013698,2]
[335831225,1724521850959,-500.0,0.00013698,2]
[335831226,1724521850975,-1054.83,0.00013698,2]
[335831227,1724521850985,-1028.0,0.00013698,2]
[335831228,1724521850995,-500.0,0.00013698,2]
[335831229,1724521851005,-500.0,0.00013698,2]
[335831230,1724521851016,-500.0,0.00013698,2]
[335831231,1724521851026,-500.0,0.00013698,2]
[335831232,1724521851036,-911.66,0.00013698,2]
[335831233,1724521851045,-638.67,0.00013698,2]
[335831234,1724521851055,-500.0,0.00013698,2]
[335831235,1724521851065,-830.99,0.00013698,2]
[335831236,1724521851075,-500.0,0.00013698,2]
[335831237,1724521851084,-793.51,0.00013698,2]
[335831238,1724521851094,-1094.72,0.00013698,2]
[335831239,1724521851104,-670.44,0.00013698,2]
[335831240,1724521851115,-2534.09,0.00013698,2]
[335831241,1724521851125,-500.0,0.00013698,2]
[335831242,1724521851135,-521.05,0.00013698,2]
[335831243,1724521851145,-617.97,0.00013698,2]
[335831244,1724521851155,-590.68,0.00013698,2]
[335831245,1724521851165,-921.57,0.00013698,2]
[335831246,1724521851175,-500.0,0.00013698,2]
[335831247,1724521851185,-500.0,0.00013698,2]
[335831248,1724521851196,-936.05,0.00013698,2]
[335831249,1724521851206,-583.87,0.00013698,2]
[335831250,1724521851216,-500.0,0.00013698,2]
[335831251,1724521851226,-500.0,0.00013698,2]
[335831252,1724521851236,-504.9817126,0.00013698,2]
[335831253,1724521851245,-294.98341763,0.00013698,2]
[335831254,1724521851255,-500.0,0.00013698,2]
[335831255,1724521851265,-671.53,0.00013698,2]
[335831256,1724521851276,-500.0,0.00013698,2]
[335831257,1724521851286,-500.0,0.00013698,2]
[335831258,1724521851298,-504.7388234,0.00013698,2]
[335831259,1724521851310,-500.0,0.00013698,2]
[335831260,1724521851321,-24011.01,0.00013698,2]
[335831261,1724521851332,-500.0,0.00013698,2]
[335831262,1724521851343,-500.0,0.00013698,2]
[335831263,1724521851353,-535.82,0.00013698,2]
[335831264,1724521851362,-500.0,0.00013698,2]
[335831265,1724521851371,-1467.77,0.00013698,2]
[335831266,1724521851382,-229.17503676,0.00013698,2]
[335831267,1724521851394,-1489.04,0.00013698,2]
[335831268,1724521851403,-647.39,0.00013698,2]
[335831269,1724521851412,-785.77,0.00013698,2]
[335831270,1724521851424,-1140.15,0.00013698,2]
[335831271,1724521851434,-3176.53,0.00013698,2]
[335831272,1724521851443,-500.0,0.00013698,2]
[335831273,1724521851452,-4435.73,0.00013698,2]
[335831274,1724521851462,-1078.75,0.00013698,2]
[335831275,1724521851471,-500.0,0.00013698,2]
[335831276,1724521851480,-500.0,0.00013698,2]
[335831277,1724521851490,-500.0,0.00013698,2]
[335831278,1724521851499,-1843.42,0.00013698,2]
[335831279,1724521851510,-500.0,0.00013698,2]
[335831280,1724521851520,-500.0,0.00013698,2]
[335831281,1724521851531,-500.0,0.00013698,2]
[335831282,1724521851542,-500.0,0.00013698,2]
[335831283,1724521851552,-2953.07,0.00013698,2]
[335831284,1724521851562,-3242.61,0.00013698,2]
[335831285,1724521851572,-525.17762807,0.00013698,2]
[335831286,1724521851587,-5711.12,0.00013698,2]
[335831287,1724521851597,-500.0,0.00013698,2]
[335831288,1724521851607,-1531.85,0.00013698,2]
[335831289,1724521851619,-831.89,0.00013698,2]
[335831290,1724521851629,-2411.91,0.00013698,2]
[335831291,1724521851639,-500.0,0.00013698,2]
[335831292,1724521851650,-663.47,0.00013698,2]
[335831293,1724521851663,-500.0,0.00013698,2]
[335831294,1724521851672,-500.0,0.00013698,2]
[335831295,1724521851682,-2313.21,0.00013698,2]
[335831296,1724521851692,-500.0,0.00013698,2]
[335831297,1724521851702,-213.26385743,0.00013698,2]
[335831298,1724521851713,-500.0,0.00013698,2]
[335831299,1724521851722,-500.0,0.00013698,2]
[335831300,1724521851732,-2002.95,0.00013698,2]
[335831301,1724521851741,-683.63,0.00013698,2]
[335831302,1724521851751,-591.04,0.00013698,2]
[335831303,1724521851761,-896.87,0.00013698,2]
[335831304,1724521851771,-500.0,0.00013698,2]
[335831305,1724521851780,-500.0,0.00013698,2]
[335831306,1724521851790,-500.0,0.00013698,2]
[335831307,1724521851800,-500.0,0.00013698,2]
[335831308,1724521851811,-500.84778286,0.00013698,2]
[335831309,1724521851822,-500.0,0.00013698,2]
[335831310,1724521851832,-500.0,0.00013698,2]
[335831311,1724521851842,-500.0,0.00013698,2]
[335831312,1724521851857,-500.0,0.00013698,2]
[335831313,1724521851867,-500.0,0.00013698,2]
[335831314,1724521851878,-500.0,0.00013698,2]
[335831315,1724521851888,-501.11720891,0.00013698,2]
[335831316,1724521851898,-500.0,0.00013698,2]
[335831317,1724521851908,-500.0,0.00013698,2]